{"text_format":"3","workbook":"xlsx","n_sheets":2,"sheets":["BEGIN","PERSOONLIJK MAANDBUDGET"],"read":"whole","date_system":"1900"}

{"sheet":"BEGIN","index":0,"n_rows":7,"n_cols":2,"rows_kept":7}
[null,"OVER DEZE SJABLOON"]
[null,"Gebruik dit werkblad persoonlijk maandbudget om uw geplande en werkelijke maandelijkse inkomsten en uw geplande en werkelijke kosten bij te houden."]
[null,"Voer de onkosten die zijn gemaakt voor verschillende categorieën in de respectievelijke tabellen in."]
[null,"Gepland saldo, Werkelijk saldo en Verschil worden automatisch berekend."]
[null,"Notitie: "]
[null,"Kolom A van het werkblad PERSOONLIJK MAANDBUDGET bevat aanvullende instructies. Deze tekst is opzettelijk verborgen. Als u tekst wilt verwijderen, selecteert u kolom A en drukt u op Delete. Als u de tekst zichtbaar wilt maken, selecteert u kolom A en wijzigt u de tekenkleur."]
[null,"Als u meer wilt weten over tabellen in het werkblad, drukt u in een tabel op Shift en F10 en selecteert u de optie Tabel en vervolgens Alternatieve tekst."]

{"sheet":"PERSOONLIJK MAANDBUDGET","index":1,"n_rows":64,"n_cols":10,"rows_kept":64,"merged":[[3,1,5,1],[3,2,3,3],[3,6,4,8],[3,9,4,9],[4,2,4,3],[5,2,5,3],[5,6,6,8],[5,9,6,9],[7,1,9,1],[7,2,7,3],[7,6,8,8],[7,9,8,9],[8,2,8,3],[9,2,9,3],[58,6,59,8],[58,9,59,9],[60,6,61,8],[60,9,61,9],[62,6,63,8],[62,9,63,9]]}
["Maak in dit werkblad een persoonlijk maandbudget. Cellen in deze kolom bevatten handige instructies voor het gebruik van dit werkblad. Druk op de pijl-omlaag om aan de slag te gaan."]
["De titel van dit werkblad staat in de cel rechts. De volgende aanwijzing staat in cel A4.","PERSOONLIJK MAANDBUDGET"]
[]
["Het label Geplande maandelijkse inkomsten staat in de cel rechts. Voer Inkomsten 1 in cel E4 in en Extra inkomsten in cel E5 om Totale maandelijkse inkomsten in cel E6 te berekenen. De volgende aanwijzing staat in cel A6.","GEPLANDE MAANDELIJKSE INKOMSTEN","Inkomsten 1",null,{"v":4300,"d":"€ 4,300.00"},null,"GEPLAND SALDO \n(Geplande inkomsten minus uitgaven)",null,null,{"$f":"E6-J59","v":{"v":3405,"d":"€ 3,405.00"}}]
[null,null,"Extra inkomsten",null,{"v":300,"d":"€ 300.00"}]
["Gepland saldo wordt automatisch berekend in cel J4, Werkelijk saldo in cel J6 en Verschil in cel J8. De volgende aanwijzing staat in cel A8.",null,"Totale maandinkomsten",null,{"$f":"SUM(E4:E5)","v":{"v":4600,"d":"€ 4,600.00"}},null,"WERKELIJK SALDO \n(Werkelijke inkomsten minus uitgaven)",null,null,{"$f":"E10-J61","v":{"v":3064,"d":"€ 3,064.00"}}]
[]
["Het label Werkelijke maandelijkse inkomsten staat in de cel rechts. Voer Inkomsten 1 in cel E8 in en Extra inkomsten in cel E9 om Totale maandelijkse inkomsten in cel E10 te berekenen. De volgende aanwijzing staat in cel A12.","WERKELIJKE MAANDINKOMSTEN","Inkomsten 1",null,{"v":4000,"d":"€ 4,000.00"},null,"VERSCHIL \n(Werkelijk minus gepland)",null,null,{"$f":"J6-J4","v":{"v":-341,"d":"€ -341.00"}}]
[null,null,"Extra inkomsten",null,{"v":300,"d":"€ 300.00"}]
[null,null,"Totale maandinkomsten",null,{"$f":"SUM(E8:E9)","v":{"v":4300,"d":"€ 4,300.00"}}]
[]
["Voer in de tabel Huisvesting gegevens in beginnend in de cel rechts, en in de tabel Amusement beginnend in cel G12. De volgende aanwijzing staat in cel A25.","HUISVESTING","Geraamde kosten","Werkelijke kosten","Verschil",null,"AMUSEMENT","Geplande kosten","Werkelijke kosten","Verschil"]
[null,"Hypotheek of huur",{"v":1000,"d":"€ 1,000.00"},{"v":1000,"d":"€ 1,000.00"},{"$f":"Huisvesting[[#This Row],[Geraamde kosten]]-Huisvesting[[#This Row],[Werkelijke kosten]]","v":{"v":0,"d":"€ 0.00"}},null,"Avondje uit",null,null,{"$f":"Amusement[[#This Row],[Geplande kosten]]-Amusement[[#This Row],[Werkelijke kosten]]","v":{"v":0,"d":"€ 0.00"}}]
[null,"Telefoon",{"v":54,"d":"€ 54.00"},{"v":100,"d":"€ 100.00"},{"$f":"Huisvesting[[#This Row],[Geraamde kosten]]-Huisvesting[[#This Row],[Werkelijke kosten]]","v":{"v":-46,"d":"-€ 46.00"}},null,"Muziekplatforms",null,null,{"$f":"Amusement[[#This Row],[Geplande kosten]]-Amusement[[#This Row],[Werkelijke kosten]]","v":{"v":0,"d":"€ 0.00"}}]
[null,"Elektriciteit",{"v":44,"d":"€ 44.00"},{"v":56,"d":"€ 56.00"},{"$f":"Huisvesting[[#This Row],[Geraamde kosten]]-Huisvesting[[#This Row],[Werkelijke kosten]]","v":{"v":-12,"d":"-€ 12.00"}},null,"Films",null,null,{"$f":"Amusement[[#This Row],[Geplande kosten]]-Amusement[[#This Row],[Werkelijke kosten]]","v":{"v":0,"d":"€ 0.00"}}]
[null,"Gas",{"v":22,"d":"€ 22.00"},{"v":28,"d":"€ 28.00"},{"$f":"Huisvesting[[#This Row],[Geraamde kosten]]-Huisvesting[[#This Row],[Werkelijke kosten]]","v":{"v":-6,"d":"-€ 6.00"}},null,"Concerten",null,null,{"$f":"Amusement[[#This Row],[Geplande kosten]]-Amusement[[#This Row],[Werkelijke kosten]]","v":{"v":0,"d":"€ 0.00"}}]
[null,"Water en riolering",{"v":8,"d":"€ 8.00"},{"v":8,"d":"€ 8.00"},{"$f":"Huisvesting[[#This Row],[Geraamde kosten]]-Huisvesting[[#This Row],[Werkelijke kosten]]","v":{"v":0,"d":"€ 0.00"}},null,"Sportevenementen",null,null,{"$f":"Amusement[[#This Row],[Geplande kosten]]-Amusement[[#This Row],[Werkelijke kosten]]","v":{"v":0,"d":"€ 0.00"}}]
[null,"Tv",{"v":34,"d":"€ 34.00"},{"v":34,"d":"€ 34.00"},{"$f":"Huisvesting[[#This Row],[Geraamde kosten]]-Huisvesting[[#This Row],[Werkelijke kosten]]","v":{"v":0,"d":"€ 0.00"}},null,"Theater",null,null,{"$f":"Amusement[[#This Row],[Geplande kosten]]-Amusement[[#This Row],[Werkelijke kosten]]","v":{"v":0,"d":"€ 0.00"}}]
[null,"Afvalverwijdering",{"v":10,"d":"€ 10.00"},{"v":10,"d":"€ 10.00"},{"$f":"Huisvesting[[#This Row],[Geraamde kosten]]-Huisvesting[[#This Row],[Werkelijke kosten]]","v":{"v":0,"d":"€ 0.00"}},null,"Overig",null,null,{"$f":"Amusement[[#This Row],[Geplande kosten]]-Amusement[[#This Row],[Werkelijke kosten]]","v":{"v":0,"d":"€ 0.00"}}]
[null,"Onderhoud of reparaties",{"v":23,"d":"€ 23.00"},{"v":0,"d":"€ 0.00"},{"$f":"Huisvesting[[#This Row],[Geraamde kosten]]-Huisvesting[[#This Row],[Werkelijke kosten]]","v":{"v":23,"d":"€ 23.00"}},null,"Overig",null,null,{"$f":"Amusement[[#This Row],[Geplande kosten]]-Amusement[[#This Row],[Werkelijke kosten]]","v":{"v":0,"d":"€ 0.00"}}]
[null,"Benodigdheden",{"v":0,"d":"€ 0.00"},{"v":0,"d":"€ 0.00"},{"$f":"Huisvesting[[#This Row],[Geraamde kosten]]-Huisvesting[[#This Row],[Werkelijke kosten]]","v":{"v":0,"d":"€ 0.00"}},null,"Overig",null,null,{"$f":"Amusement[[#This Row],[Geplande kosten]]-Amusement[[#This Row],[Werkelijke kosten]]","v":{"v":0,"d":"€ 0.00"}}]
[null,"Overig",{"v":0,"d":"€ 0.00"},{"v":0,"d":"€ 0.00"},{"$f":"Huisvesting[[#This Row],[Geraamde kosten]]-Huisvesting[[#This Row],[Werkelijke kosten]]","v":{"v":0,"d":"€ 0.00"}},null,"Subtotaal",null,null,{"$f":"SUBTOTAL(109,Amusement[Verschil])","v":{"v":0,"d":"€ 0.00"}}]
[null,"Subtotaal",null,null,{"$f":"SUBTOTAL(109,Huisvesting[Verschil])","v":{"v":-41,"d":"-€ 41.00"}}]
[{"$nulls":6},"LENINGEN","Geraamde kosten","Werkelijke kosten","Verschil"]
["Voer in de tabel Vervoer gegevens in beginnend in de cel rechts, en in de tabel Leningen beginnend in cel G24. De volgende aanwijzing staat in cel A35.","VERVOER","Geraamde kosten","Werkelijke kosten","Verschil",null,"Persoonlijk",null,null,{"$f":"Leningen[[#This Row],[Geraamde kosten]]-Leningen[[#This Row],[Werkelijke kosten]]","v":{"v":0,"d":"€ 0.00"}}]
[null,"Autobetaling",null,null,{"$f":"Vervoer[[#This Row],[Geraamde kosten]]-Vervoer[[#This Row],[Werkelijke kosten]]","v":{"v":0,"d":"€ 0.00"}},null,"Student",null,null,{"$f":"Leningen[[#This Row],[Geraamde kosten]]-Leningen[[#This Row],[Werkelijke kosten]]","v":{"v":0,"d":"€ 0.00"}}]
[null,"Openbaar vervoer",null,null,{"$f":"Vervoer[[#This Row],[Geraamde kosten]]-Vervoer[[#This Row],[Werkelijke kosten]]","v":{"v":0,"d":"€ 0.00"}},null,"Creditcard",null,null,{"$f":"Leningen[[#This Row],[Geraamde kosten]]-Leningen[[#This Row],[Werkelijke kosten]]","v":{"v":0,"d":"€ 0.00"}}]
[null,"Verzekering",null,null,{"$f":"Vervoer[[#This Row],[Geraamde kosten]]-Vervoer[[#This Row],[Werkelijke kosten]]","v":{"v":0,"d":"€ 0.00"}},null,"Creditcard",null,null,{"$f":"Leningen[[#This Row],[Geraamde kosten]]-Leningen[[#This Row],[Werkelijke kosten]]","v":{"v":0,"d":"€ 0.00"}}]
[null,"Kentekenbewijs/rijbewijs",null,null,{"$f":"Vervoer[[#This Row],[Geraamde kosten]]-Vervoer[[#This Row],[Werkelijke kosten]]","v":{"v":0,"d":"€ 0.00"}},null,"Creditcard",null,null,{"$f":"Leningen[[#This Row],[Geraamde kosten]]-Leningen[[#This Row],[Werkelijke kosten]]","v":{"v":0,"d":"€ 0.00"}}]
[null,"Brandstof",null,null,{"$f":"Vervoer[[#This Row],[Geraamde kosten]]-Vervoer[[#This Row],[Werkelijke kosten]]","v":{"v":0,"d":"€ 0.00"}},null,"Overig",null,null,{"$f":"Leningen[[#This Row],[Geraamde kosten]]-Leningen[[#This Row],[Werkelijke kosten]]","v":{"v":0,"d":"€ 0.00"}}]
[null,"Onderhoud",null,null,{"$f":"Vervoer[[#This Row],[Geraamde kosten]]-Vervoer[[#This Row],[Werkelijke kosten]]","v":{"v":0,"d":"€ 0.00"}},null,"Subtotaal",null,null,{"$f":"SUBTOTAL(109,Leningen[Verschil])","v":{"v":0,"d":"€ 0.00"}}]
[null,"Overig",null,null,{"$f":"Vervoer[[#This Row],[Geraamde kosten]]-Vervoer[[#This Row],[Werkelijke kosten]]","v":{"v":0,"d":"€ 0.00"}}]
[null,"Subtotaal",null,null,{"$f":"SUBTOTAL(109,Vervoer[Verschil])","v":{"v":0,"d":"€ 0.00"}},null,"BELASTINGEN","Geraamde kosten","Werkelijke kosten","Verschil"]
[{"$nulls":6},"Overheid",null,null,{"$f":"Belastingen[[#This Row],[Geraamde kosten]]-Belastingen[[#This Row],[Werkelijke kosten]]","v":{"v":0,"d":"€ 0.00"}}]
["Voer in de tabel Verzekering gegevens in beginnend in de cel rechts, en in de tabel Belastingen beginnend in cel G33. De volgende aanwijzing staat in cel A42.","VERZEKERING","Geraamde kosten","Werkelijke kosten","Verschil",null,"Provincie",null,null,{"$f":"Belastingen[[#This Row],[Geraamde kosten]]-Belastingen[[#This Row],[Werkelijke kosten]]","v":{"v":0,"d":"€ 0.00"}}]
[null,"Woning",null,null,{"$f":"Verzekering[[#This Row],[Geraamde kosten]]-Verzekering[[#This Row],[Werkelijke kosten]]","v":{"v":0,"d":"€ 0.00"}},null,"Gemeente",null,null,{"$f":"Belastingen[[#This Row],[Geraamde kosten]]-Belastingen[[#This Row],[Werkelijke kosten]]","v":{"v":0,"d":"€ 0.00"}}]
[null,"Gezondheid",null,null,{"$f":"Verzekering[[#This Row],[Geraamde kosten]]-Verzekering[[#This Row],[Werkelijke kosten]]","v":{"v":0,"d":"€ 0.00"}},null,"Overig",null,null,{"$f":"Belastingen[[#This Row],[Geraamde kosten]]-Belastingen[[#This Row],[Werkelijke kosten]]","v":{"v":0,"d":"€ 0.00"}}]
[null,"Leven",null,null,{"$f":"Verzekering[[#This Row],[Geraamde kosten]]-Verzekering[[#This Row],[Werkelijke kosten]]","v":{"v":0,"d":"€ 0.00"}},null,"Subtotaal",null,null,{"$f":"SUBTOTAL(109,Belastingen[Verschil])","v":{"v":0,"d":"€ 0.00"}}]
[null,"Overig",null,null,{"$f":"Verzekering[[#This Row],[Geraamde kosten]]-Verzekering[[#This Row],[Werkelijke kosten]]","v":{"v":0,"d":"€ 0.00"}}]
[null,"Subtotaal",null,null,{"$f":"SUBTOTAL(109,Verzekering[Verschil])","v":{"v":0,"d":"€ 0.00"}},null,"SPAARGELD OF INVESTERINGEN","Geraamde kosten","Werkelijke kosten","Verschil"]
[{"$nulls":6},"Pensioengeld",null,null,{"$f":"Spaargeld[[#This Row],[Geraamde kosten]]-Spaargeld[[#This Row],[Werkelijke kosten]]","v":{"v":0,"d":"€ 0.00"}}]
["Voer in de tabel Eten en drinken gegevens in beginnend in de cel rechts, en in de tabel Spaargeld beginnend in cel G40. De volgende aanwijzing staat in cel A48.","ETEN","Geraamde kosten","Werkelijke kosten","Verschil",null,"Investeringsgeld",null,null,{"$f":"Spaargeld[[#This Row],[Geraamde kosten]]-Spaargeld[[#This Row],[Werkelijke kosten]]","v":{"v":0,"d":"€ 0.00"}}]
[null,"Boodschappen",null,null,{"$f":"Eten[[#This Row],[Geraamde kosten]]-Eten[[#This Row],[Werkelijke kosten]]","v":{"v":0,"d":"€ 0.00"}},null,"Overig",null,null,{"$f":"Spaargeld[[#This Row],[Geraamde kosten]]-Spaargeld[[#This Row],[Werkelijke kosten]]","v":{"v":0,"d":"€ 0.00"}}]
[null,"Uit eten",null,null,{"$f":"Eten[[#This Row],[Geraamde kosten]]-Eten[[#This Row],[Werkelijke kosten]]","v":{"v":0,"d":"€ 0.00"}},null,"Subtotaal",null,null,{"$f":"SUBTOTAL(109,Spaargeld[Verschil])","v":{"v":0,"d":"€ 0.00"}}]
[null,"Overig",null,null,{"$f":"Eten[[#This Row],[Geraamde kosten]]-Eten[[#This Row],[Werkelijke kosten]]","v":{"v":0,"d":"€ 0.00"}}]
[null,"Subtotaal",null,null,{"$f":"SUBTOTAL(109,Eten[Verschil])","v":{"v":0,"d":"€ 0.00"}},null,"GESCHENKEN EN DONATIES","Geraamde kosten","Werkelijke kosten","Verschil"]
[{"$nulls":6},"Liefdadigheid 1",null,null,{"$f":"Geschenken[[#This Row],[Geraamde kosten]]-Geschenken[[#This Row],[Werkelijke kosten]]","v":{"v":0,"d":"€ 0.00"}}]
["Voer in de tabel Huisdieren gegevens in beginnend in de cel rechts, en in de tabel Geschenken beginnend in cel G46. De volgende aanwijzing staat in cel A56.","HUISDIEREN","Geraamde kosten","Werkelijke kosten","Verschil",null,"Liefdadigheid 2",null,null,{"$f":"Geschenken[[#This Row],[Geraamde kosten]]-Geschenken[[#This Row],[Werkelijke kosten]]","v":{"v":0,"d":"€ 0.00"}}]
[null,"Eten",null,null,{"$f":"Huisdieren[[#This Row],[Geraamde kosten]]-Huisdieren[[#This Row],[Werkelijke kosten]]","v":{"v":0,"d":"€ 0.00"}},null,"Liefdadigheid 3",null,null,{"$f":"Geschenken[[#This Row],[Geraamde kosten]]-Geschenken[[#This Row],[Werkelijke kosten]]","v":{"v":0,"d":"€ 0.00"}}]
[null,"Gezondheid",null,null,{"$f":"Huisdieren[[#This Row],[Geraamde kosten]]-Huisdieren[[#This Row],[Werkelijke kosten]]","v":{"v":0,"d":"€ 0.00"}},null,"Subtotaal",null,null,{"$f":"SUBTOTAL(109,Geschenken[Verschil])","v":{"v":0,"d":"€ 0.00"}}]
[null,"Verzorging",null,null,{"$f":"Huisdieren[[#This Row],[Geraamde kosten]]-Huisdieren[[#This Row],[Werkelijke kosten]]","v":{"v":0,"d":"€ 0.00"}}]
[null,"Speeltjes",null,null,{"$f":"Huisdieren[[#This Row],[Geraamde kosten]]-Huisdieren[[#This Row],[Werkelijke kosten]]","v":{"v":0,"d":"€ 0.00"}},null,"JURIDISCH","Geraamde kosten","Werkelijke kosten","Verschil"]
[null,"Overig",null,null,{"$f":"Huisdieren[[#This Row],[Geraamde kosten]]-Huisdieren[[#This Row],[Werkelijke kosten]]","v":{"v":0,"d":"€ 0.00"}},null,"Advocaat",null,null,{"$f":"Juridisch[[#This Row],[Geraamde kosten]]-Juridisch[[#This Row],[Werkelijke kosten]]","v":{"v":0,"d":"€ 0.00"}}]
[null,"Subtotaal",null,null,{"$f":"SUBTOTAL(109,Huisdieren[Verschil])","v":{"v":0,"d":"€ 0.00"}},null,"Alimentatie",null,null,{"$f":"Juridisch[[#This Row],[Geraamde kosten]]-Juridisch[[#This Row],[Werkelijke kosten]]","v":{"v":0,"d":"€ 0.00"}}]
[{"$nulls":6},"Betalingen voor retentierechten of gerechtelijke uitspraken",null,null,{"$f":"Juridisch[[#This Row],[Geraamde kosten]]-Juridisch[[#This Row],[Werkelijke kosten]]","v":{"v":0,"d":"€ 0.00"}}]
["Voer in de tabel Persoonlijke verzorging gegevens in beginnend in de cel rechts, en in de tabel Juridisch beginnend in cel G52. De volgende aanwijzing staat in cel A59.","PERSOONLIJKE VERZORGING","Geraamde kosten","Werkelijke kosten","Verschil",null,"Overig",null,null,{"$f":"Juridisch[[#This Row],[Geraamde kosten]]-Juridisch[[#This Row],[Werkelijke kosten]]","v":{"v":0,"d":"€ 0.00"}}]
[null,"Medisch",null,null,{"$f":"PersoonlijkeVerzorging[[#This Row],[Geraamde kosten]]-PersoonlijkeVerzorging[[#This Row],[Werkelijke kosten]]","v":{"v":0,"d":"€ 0.00"}},null,"Subtotaal",null,null,{"$f":"SUBTOTAL(109,Juridisch[Verschil])","v":{"v":0,"d":"€ 0.00"}}]
[null,"Haar/nagels",null,null,{"$f":"PersoonlijkeVerzorging[[#This Row],[Geraamde kosten]]-PersoonlijkeVerzorging[[#This Row],[Werkelijke kosten]]","v":{"v":0,"d":"€ 0.00"}}]
["Totale geplande kosten wordt automatisch berekend in cel J59, Totale werkelijke kosten in cel J61 en Totaal verschil in cel J63.","Kleding",null,null,{"$f":"PersoonlijkeVerzorging[[#This Row],[Geraamde kosten]]-PersoonlijkeVerzorging[[#This Row],[Werkelijke kosten]]","v":{"v":0,"d":"€ 0.00"}},null,"TOTALE GEPLANDE KOSTEN",null,null,{"$f":"SUBTOTAL(109,Huisvesting[Geraamde kosten],Vervoer[Geraamde kosten],Verzekering[Geraamde kosten],Eten[Geraamde kosten],Huisdieren[Geraamde kosten],PersoonlijkeVerzorging[Geraamde kosten],Amusement[Geplande kosten],Leningen[Geraamde kosten],Belastingen[Geraamde kosten],Spaargeld[Geraamde kosten],Geschenken[Geraamde kosten],Juridisch[Geraamde kosten])","v":{"v":1195,"d":"€ 1,195.00"}}]
[null,"Stomerij",null,null,{"$f":"PersoonlijkeVerzorging[[#This Row],[Geraamde kosten]]-PersoonlijkeVerzorging[[#This Row],[Werkelijke kosten]]","v":{"v":0,"d":"€ 0.00"}}]
[null,"Sportclub",null,null,{"$f":"PersoonlijkeVerzorging[[#This Row],[Geraamde kosten]]-PersoonlijkeVerzorging[[#This Row],[Werkelijke kosten]]","v":{"v":0,"d":"€ 0.00"}},null,"TOTALE WERKELIJKE KOSTEN",null,null,{"$f":"SUBTOTAL(109,Huisvesting[Werkelijke kosten],Vervoer[Werkelijke kosten],Verzekering[Werkelijke kosten],Eten[Werkelijke kosten],Huisdieren[Werkelijke kosten],PersoonlijkeVerzorging[Werkelijke kosten],Amusement[Werkelijke kosten],Leningen[Werkelijke kosten],Belastingen[Werkelijke kosten],Spaargeld[Werkelijke kosten],Geschenken[Werkelijke kosten],Juridisch[Werkelijke kosten])","v":{"v":1236,"d":"€ 1,236.00"}}]
[null,"Bijdragen aan organisaties",null,null,{"$f":"PersoonlijkeVerzorging[[#This Row],[Geraamde kosten]]-PersoonlijkeVerzorging[[#This Row],[Werkelijke kosten]]","v":{"v":0,"d":"€ 0.00"}}]
[null,"Overig",null,null,{"$f":"PersoonlijkeVerzorging[[#This Row],[Geraamde kosten]]-PersoonlijkeVerzorging[[#This Row],[Werkelijke kosten]]","v":{"v":0,"d":"€ 0.00"}},null,"TOTAAL VERSCHIL",null,null,{"$f":"J59-J61","v":{"v":-41,"d":"€ -41.00"}}]
[null,"Subtotaal",null,null,{"$f":"SUBTOTAL(109,PersoonlijkeVerzorging[Verschil])","v":{"v":0,"d":"€ 0.00"}}]